Cogmind - Beta 9 @@@ ROGUE MODE // 2019.10.25 @ 20:13:32 Player: Xii Result: Destroyed by Y-45 Defender with Beam Rifle Performance ------------- Evolutions (2) 1000 Regions Visited (5) 1000 Robots Destroyed (0) 0 Value Destroyed (0) 0 Prototype IDs (6) 120 Alien Tech Used (0) 0 Bonus (1170) 1170 TOTAL SCORE: 3290 Bonus ------- Pacifist 470 Entered Garrisons 200 Used RIF Installer 500 Cogmind --------- Core Integrity 0/550 Matter 255/300 Energy 98/100 System Corruption 0% Temperature Cool (9) Location -8/Materials Parts ------- Power (1) Propulsion (4) Armored Treads Advanced Treads Utility (4) Structural Scanner Improved Signal Interpreter Seismic Analyzer Propulsion Shielding Weapon (2) Inventory (4) Heavy Ion Engine Cesium-ion Thruster Sensor Array Advanced Terrain Scanner Peak State ------------ Power (None) Propulsion Armored Huge Wheel Armored Huge Wheel Utility Structural Scanner Improved Signal Interpreter Improved Terrain Scanner Seismic Analyzer Weapon Datajack Inventory Light Ion Engine Heavy Ion Engine Propulsion Shielding [Rating: 23] Favorites ----------- Power Light Ion Engine Engine Light Ion Engine Propulsion Armored Huge Wheel Treads Light Treads Leg Aluminum Leg Wheel Armored Huge Wheel Utility Seismic Analyzer Device Structural Scanner Storage Small Storage Unit Processor Seismic Analyzer Protection Propulsion Shielding Weapon Datajack Energy Gun Small Laser Ballistic Gun Light Assault Rifle Special Melee Weapon Datajack Build | -11 -10 -9 -8 -8 -8 ------- Run | Scr Mat Mat Mat Gar Mat Slots Evolved 4 | . . 2 2 . . Power . | . . . . . . Propulsion 2 | . . 1 1 . . Utility 2 | . . 1 1 . . Weapon . | . . . . . . Parts Attached 21 | 3 4 2 3 2 7 Power . | . . . . . . Engine . | . . . . . . Core . | . . . . . . Reactor . | . . . . . . Propulsion 8 | 2 . 1 2 . 3 Treads 5 | 2 . . . . 3 Leg 1 | . . 1 . . . Wheel 2 | . . . 2 . . Hover . | . . . . . . Flight . | . . . . . . Utility 10 | . 2 1 1 2 4 Device 6 | . 1 . 1 2 2 Storage . | . . . . . . Processor 3 | . 1 1 . . 1 Hackware . | . . . . . . Protection 1 | . . . . . 1 Artifact . | . . . . . . Weapon 3 | 1 2 . . . . Energy Gun . | . . . . . . Energy Cannon . | . . . . . . Ballistic Gun 1 | 1 . . . . . Ballistic Cannon . | . . . . . . Launcher . | . . . . . . Special Weapon . | . . . . . . Impact Weapon . | . . . . . . Slashing Weapon . | . . . . . . Piercing Weapon . | . . . . . . Special Melee Weapon 2 | . 2 . . . . Unidentified Prototypes . | . . . . . . Parts Lost 8 | . . 3 . 2 3 Power . | . . . . . . Propulsion 5 | . . 2 . 1 2 Utility 1 | . . . . . 1 Weapon 2 | . . 1 . 1 . Highest Loss Streak 3 | . . 3 . 2 3 Average Slot Usage (%) 60 | . 72 77 63 56 44 Treads 9 | . 28 22 . . 5 Leg 1 | . . 11 . . . Wheel 7 | . . . 18 15 3 Device 14 | . 9 11 18 18 12 Processor 14 | . 5 12 18 18 18 Protection 1 | . . . . . 4 Ballistic Gun 1 | . 8 . . . . Special Melee Weapon 9 | . 19 20 9 5 . Naked Turns . | . . . . . . Heaviest Build 3 | 2 3 3 3 3 2 Greatest Support 56 | 3 3 3 3 56 3 Greatest Overweight (x) . | . . . . . . Average Overweight (x) . | . . . . . . Largest Inventory Capacity 6 | 6 4 4 4 4 4 Average Capacity 4 | 6 4 4 4 4 4 Most Carried 6 | 6 4 4 4 4 4 Average Carried 3 | 5 3 3 3 4 3 Final Capacity 4 | . . . . . 4 Final Carried 4 | . . . . . 4 Class Distribution -------------------- 52% | Scout 47% | Mutant Dominant Class ---------------- Mutant | -10/Materials Mutant | -9/Materials Scout | -8/Materials Scout | -8/Garrison Mutant | -8/Materials Resources | -11 -10 -9 -8 -8 -8 ----------- Run | Scr Mat Mat Mat Gar Mat Matter Collected 316 | 195 . 72 . . 49 Remotely . | . . . . . . Salvage Created . | . . . . . . Parts . | . . . . . . Haulers Intercepted . | . . . . . . Recyclers Shooed . | . . . . . . Parts Field Recycled . | . . . . . . Retrieved Matter . | . . . . . . Parts Self-Destructed . | . . . . . . Prevented . | . . . . . . Kills | -11 -10 -9 -8 -8 -8 ------- Run | Scr Mat Mat Mat Gar Mat Combat Hostiles Destroyed . | . . . . . . Classes Destroyed . | . . . . . . Best Kill Streak . | . . . . . . Combat Bots Only . | . . . . . . Max Kills in Single Turn . | . . . . . . Gunslinging . | . . . . . . Exploded . | . . . . . . Melee . | . . . . . . Uniques/NPCs Destroyed . | . . . . . . Combat | -11 -10 -9 -8 -8 -8 -------- Run | Scr Mat Mat Mat Gar Mat Damage Taken 1793 | . . 344 244 537 668 Core 593 | . . 34 53 201 305 Absorbed by Shields 5 | . . . . 5 . Core Remaining (%) 97 | 100 100 91 . . . Volleys Fired . | . . . . . . Largest . | . . . . . . Hottest . | . . . . . . Shots Fired . | . . . . . . Gun . | . . . . . . Cannon . | . . . . . . Launcher . | . . . . . . Special . | . . . . . . Kinetic . | . . . . . . Thermal . | . . . . . . Explosive . | . . . . . . Electromagnetic . | . . . . . . Robot Hit Streak . | . . . . . . Robot Miss Streak . | . . . . . . Penetration Max . | . . . . . . Secondary Targets . | . . . . . . Shots Hit Robots . | . . . . . . Core Hits . | . . . . . . Critical Hits . | . . . . . . Critical Kills . | . . . . . . Critical Parts Destroyed . | . . . . . . Melee Attacks . | . . . . . . Impact . | . . . . . . Slashing . | . . . . . . Piercing . | . . . . . . Sneak Attacks . | . . . . . . Combat Hostiles . | . . . . . . Follow-up Attacks . | . . . . . . Damage Inflicted 6 | . . 1 5 . . Guns . | . . . . . . Cannons . | . . . . . . Explosions . | . . . . . . Melee . | . . . . . . Ramming 6 | . . 1 5 . . Kinetic . | . . . . . . Thermal . | . . . . . . Explosive . | . . . . . . Electromagnetic . | . . . . . . Impact . | . . . . . . Slashing . | . . . . . . Piercing . | . . . . . . Highest Corruption . | . . . . . . Average Corruption . | . . . . . . Corruption Purged . | . . . . . . Overload Shots . | . . . . . . Overflow Damage . | . . . . . . Projectiles . | . . . . . . Explosions . | . . . . . . Melee . | . . . . . . Knockbacks . | . . . . . . Impact . | . . . . . . Kinetic . | . . . . . . Secondary . | . . . . . . Self-Inflicted Damage 2 | . . . 2 . . Shots . | . . . . . . Rammed 2 | . . 1 1 . . Targets Rammed 2 | . . 1 1 . . Kicked . | . . . . . . Crushed . | . . . . . . Highest Temperature . | . . . . . . Average Temperature . | . . . . . . Received Heat Transfer 642 | . . 138 63 189 252 Siege Activations . | . . . . . . Robots Corrupted . | . . . . . . Combat Hostiles . | . . . . . . Parts Fried . | . . . . . . Impact Corruptions . | . . . . . . Robots Melted . | . . . . . . Combat Hostiles . | . . . . . . Parts Melted . | . . . . . . Heat Transferred . | . . . . . . Parts Sabotaged . | . . . . . . Parts Stolen . | . . . . . . Parts Stripped . | . . . . . . Power Chain Reactions . | . . . . . . Missiles Intercepted . | . . . . . . Alert | -11 -10 -9 -8 -8 -8 ------- Run | Scr Mat Mat Mat Gar Mat Peak Influence 154 | . 35 154 72 56 137 Average Influence 57 | . 25 67 63 45 89 Maximum Alert Level . | . . . . . . Low Security (%) 100 | . . . . . . Level 1 . | . . . . . . Level 2 . | . . . . . . Level 3 . | . . . . . . Level 4 . | . . . . . . Level 5 . | . . . . . . High Security . | . . . . . . Max Security . | . . . . . . Squads Dispatched 6 | . . 2 . . 4 Investigation 1 | . . 1 . . . Extermination . | . . . . . . Reinforcement 5 | . . 1 . . 4 Assault . | . . . . . . Garrison . | . . . . . . Intercept . | . . . . . . Construction Impeded . | . . . . . . Haulers Reinforced . | . . . . . . Stealth | -11 -10 -9 -8 -8 -8 --------- Run | Scr Mat Mat Mat Gar Mat Distress Signals 3 | . . . 1 . 2 Communications Jammed . | . . . . . . Distress Signals . | . . . . . . Times Spotted 67 | . 2 22 9 10 24 Peak Tracking Total 19 | . 2 19 7 13 14 Tactical Retreats 7 | . . 2 1 1 3 Traps | -11 -10 -9 -8 -8 -8 ------- Run | Scr Mat Mat Mat Gar Mat Traps Triggered 2 | . . . . 2 . Indirectly . | . . . . . . Trap Hack Attempts . | . . . . . . Triggered . | . . . . . . Disarmed . | . . . . . . Reprogrammed . | . . . . . . Reused . | . . . . . . Traps Extracted . | . . . . . . Installed . | . . . . . . Triggered . | . . . . . . Machines | -11 -10 -9 -8 -8 -8 ---------- Run | Scr Mat Mat Mat Gar Mat Machines Disabled . | . . . . . . Max in Single Turn . | . . . . . . Machines Sabotaged . | . . . . . . Garrisons Compromised . | . . . . . . Overloaded Fab Kills . | . . . . . . Fab Network Shutdowns . | . . . . . . Hacking | -11 -10 -9 -8 -8 -8 --------- Run | Scr Mat Mat Mat Gar Mat Machines Accessed 14 | . 3 4 3 . 4 Terminals 9 | . 1 3 2 . 3 Fabricators . | . . . . . . Repair Stations . | . . . . . . Recycling Units 2 | . 2 . . . . Scanalyzers 2 | . . 1 . . 1 Garrison Access 1 | . . . 1 . . Total Hacks 45 | . 9 13 7 . 16 Successful 28 | . 6 7 5 . 10 Failed 16 | . 3 5 2 . 6 Catastrophic . | . . . . . . Database Lockouts 1 | . . 1 . . . Manual 19 | . 5 4 4 . 6 Terminals 34 | . 5 12 5 . 12 Fabricators . | . . . . . . Repair Stations . | . . . . . . Recycling Units 4 | . 4 . . . . Scanalyzers 5 | . . 1 . . 4 Garrison Access 2 | . . . 2 . . Terminal Hacks 9 | . . 6 1 . 2 Prototype ID Bank 2 | . . 2 . . . Branch Access Points 1 | . . 1 . . . Terminal Index 1 | . . . . . 1 Locate Traps 1 | . . 1 . . . Registered Components 1 | . . 1 . . . Zone Layout 3 | . . 1 1 . 1 Fabricator Hacks . | . . . . . . Repair Station Hacks . | . . . . . . Recycling Unit Hacks 4 | . 4 . . . . Process 1 | . 1 . . . . Report Inventory 1 | . 1 . . . . Retrieve Matter 1 | . 1 . . . . Retrieve Components 1 | . 1 . . . . Scanalyzer 5 | . . 1 . . 4 Insert Component 3 | . . 1 . . 2 Analyze 2 | . . . . . 2 Garrison Access Hacks 1 | . . . 1 . . Unlock Access 1 | . . . 1 . . Unauthorized Hacks 20 | . 4 . 7 . 9 Terminals 9 | . 2 . 3 . 4 Track 4 | . 1 . 1 . 2 Botnet 5 | . 1 . 2 . 2 Fabricators . | . . . . . . Repair Stations . | . . . . . . Recycling Units . | . . . . . . Scanalyzers . | . . . . . . Garrison Access . | . . . . . . Data Cores Recovered . | . . . . . . Used . | . . . . . . Hacking Detections 13 | . 3 4 2 . 4 Full Trace Events 1 | . . . . . 1 Feedback Events . | . . . . . . Feedback Blocked . | . . . . . . Robot Schematics Acquired . | . . . . . . Robots Built . | . . . . . . Matter . | . . . . . . Time . | . . . . . . Total Robot Build Rating . | . . . . . . Part Schematics Acquired 2 | . . . . . 2 Parts Built . | . . . . . . Matter . | . . . . . . Time . | . . . . . . Total Part Build Rating . | . . . . . . Parts Repaired . | . . . . . . Time . | . . . . . . Parts Recycled . | . . . . . . Recycled Matter 14 | . 14 . . . . Retrieved Matter 14 | . 14 . . . . Retrieved Components . | . . . . . . Parts Scanalyzed 2 | . . . . . 2 Part Schematics Acquired 2 | . . . . . 2 Parts Damaged . | . . . . . . Bothacking | -11 -10 -9 -8 -8 -8 ------------ Run | Scr Mat Mat Mat Gar Mat Used RIF Installer 1 | . . . . 1 . Robots Hacked . | . . . . . . Non-combat . | . . . . . . Combat . | . . . . . . Robot Hacks Applied . | . . . . . . Relay Couplers Released . | . . . . . . Robots Rewired . | . . . . . . Allies Hacked . | . . . . . . Hacks Repelled . | . . . . . . Allies | -11 -10 -9 -8 -8 -8 -------- Run | Scr Mat Mat Mat Gar Mat Total Allies . | . . . . . . Largest Group . | . . . . . . Highest-Rated Group . | . . . . . . Highest-Rated Ally . | . . . . . . Total Orders . | . . . . . . Ally Attacks . | . . . . . . Total Damage . | . . . . . . Kills . | . . . . . . Allies Corrupted . | . . . . . . Allies Melted . | . . . . . . Intel | -11 -10 -9 -8 -8 -8 ------- Run | Scr Mat Mat Mat Gar Mat Robot Analysis Total . | . . . . . . Derelict Logs Recovered . | . . . . . . Drone Launches . | . . . . . . Drone Recoveries . | . . . . . . Exploration | -11 -10 -9 -8 -8 -8 ------------- Run | Scr Mat Mat Mat Gar Mat Turns Passed 531 | 7 101 74 68 152 129 Spaces Moved 906 | 1 179 135 116 241 234 Core 905 | 1 179 135 116 240 234 Treads . | . . . . . . Legs . | . . . . . . Wheels 1 | . . . . 1 . Hover . | . . . . . . Flight . | . . . . . . Fastest Speed 50 | 50 50 50 50 50 50 Average Speed 50 | 50 50 50 50 50 50 Slowest Speed 100 | 50 50 50 50 100 50 Overloaded Moves . | . . . . . . Propulsion Burnouts . | . . . . . . Robots Hopped . | . . . . . . Cave-ins Triggered . | . . . . . . Exploration Rate (%) 30 | 2 48 29 20 51 32 Regions Visited 5 Branch Regions . Pre-discovered Areas . | . . . . . . Known Exits Taken 2 | . . 1 1 . . Unknown Exits Taken 2 | 1 1 . . . . Scrap Searched . | . . . . . . Spaces Dug . | . . . . . . Terrain Destroyed . | . . . . . . Melee . | . . . . . . Projectile . | . . . . . . AOE . | . . . . . . Actions | -11 -10 -9 -8 -8 -8 --------- Run | Scr Mat Mat Mat Gar Mat Total 976 | 7 190 140 126 270 243 Wait 5 | . 1 . . 3 1 Move 902 | . 178 134 116 240 234 Hop . | . . . . . . Pick Up 8 | . 2 2 3 . 1 Fast Attach 10 | . 4 1 2 . 3 Attach 3 | . . 1 1 . 1 Detach 1 | . 1 . . . . Swap 8 | 3 . . . 2 3 Drop 12 | 4 4 1 3 . . Fire . | . . . . . . Melee . | . . . . . . Ram 2 | . . 1 1 . . Kick . | . . . . . . Crush . | . . . . . . Escape Stasis 25 | . . . . 25 . Rewire . | . . . . . . Trap . | . . . . . . Miscellaneous . | . . . . . . Route ------- -11/Scrapyard -10/Materials (discovered 2 exits: *Mat / [*Min]) -9/Materials (discovered 2 exits: *Mat / Min) -8/Materials -8/Garrison (discovered 2 exits: *Mat x2) -8/Materials History --------- Turn | Location | Event 8 | -11/Scrapyard | Discovered new exit (range 0) 8 | -11/Scrapyard | Entered Materials 32 | -10/Materials | Discovered new exit (range 12) 101 | -10/Materials | Discovered new exit (range 16) 109 | -10/Materials | Entered another Materials area 109 | -9/Materials | Evolved 2 slots: Propulsion x1, Utility x1 160 | -9/Materials | Discovered new exit (range 18) 160 | -9/Materials | Central database locked down 171 | -9/Materials | Identified exit to Mines 178 | -9/Materials | Discovered new exit (range 11) 182 | -9/Materials | Identified exit to Materials 183 | -9/Materials | Entered another Materials area 183 | -8/Materials | Evolved 2 slots: Propulsion x1, Utility x1 211 | -8/Materials | Lost 3 parts (2n1w) 251 | -8/Materials | Identified exit to Garrison 251 | -8/Materials | Entered Garrison 326 | -8/Garrison | Triggered checkpoint 332 | -8/Garrison | Triggered checkpoint 349 | -8/Garrison | Discovered new exit (range 10) 372 | -8/Garrison | Triggered checkpoint 392 | -8/Garrison | Discovered new exit (range 15) 398 | -8/Garrison | Identified exit to Materials 401 | -8/Garrison | Installed Relay Interface Framework 403 | -8/Garrison | Entered Materials 458 | -8/Materials | Core integrity fell below 50% 481 | -8/Materials | Core integrity fell below 20% 505 | -8/Materials | Lost 3 parts (2n1u) 532 | -8/Materials | Destroyed by Y-45 Defender with Beam Rifle Last Messages --------------- Schematic downloaded. >>Insert(Cesium-ion Thruster) Scanning Cesium-ion Thruster... Ready to analyze. >>Scanalyze Scanning: Cesium-ion Thruster... Schematic downloaded. W-25 Informer sends out distress signal. K-01 Serf collects debris. Penetrated by Slug. Acquired Adv. Treads. Slug penetrates Wall. Penetrated by Slug. Connecting with Terminal... >>Layout(Zone) Retrieving Zone 8A layout... Downloaded map data. Connecting with Terminal... Slug penetrates Wall. U-05 Engineer destroyed. Map ----- +----------------------------------------------------+ | ####+#########+####+### ##??????? | | #??????? | | #??""??? | | # "T" # | | ######+################# # # | | ??????????#???# # # # | | #?????????#???# """ # # # | | #?????????#???# [ """ # # # | | #?????????#???# """ + + # | | #?????????##### ! # # # | | ??????????# / # # # | | ??????????##### "T" # # """ # | | ??????????????# """ # Y # """ # | | ??????????????# # # """ # | | ??????????????########## # # | | ########???????# ## ## #?### | | ] #???????# # %= ### #?? | | #???????# # =###?##? | | #???????# + T # #? | | #???????# # # #? | | ########???????# # Y # #? | | #####??????????########## ### #? | | #???????????????????# #?# #? | | """ #???????????????????# #?# #? | | """ #???????????######### #?# #? | | """ #???????????# """ ##@#?# #? | | #???????????# """ ## ### #? | | #???????????# """ # w ###+###? | | #####???????????# + #??? | | ????????????????# # #??? | | ????????????????# ## # #??? | | ??????????############### # #??? | | ??????????# #?######+# ####??? | | ??????????# ### # #####?? | | ?????#?????????????????????? ?????? | | ?????#?????????????????????? ?????? | | ????#??????????????????????? ?????? | | ?????#??????????????????????? ????? | | ????????????????????????????? ????? | | ??????????????????????????????????? | | ??????????????????????????????????? | | ?????? ???????????????????????????? | | ????? ????????????????????????????? | | ??????????????????????????????????? | | ?#?????????#??????????????????????? | | ??????#???????????????????????????? | | ??????????????????????????????????? | | ???#??????? ??????????????????????? | | ??????????????????????????????????? | | ???#???? ?? ??????????????????????? | +----------------------------------------------------+ Best States ------------- Heat Dissipation 31 Energy Generation 5 Energy Capacity 100 Matter Stores 300 Matter Capacity 300 Sight Range 16 Robot Scan Range 10 Terrain Scan Range 16 Terrain Scan Density 60 Propulsion Shielding 33 Evasion (%) 50 Item Schematics ----------------- Adv. Terrain Scanner | -8/Materials | Scanalyzed Cesium-ion Thruster | -8/Materials | Scanalyzed Robot Schematics ------------------ None Fabricated ------------ Nothing Alien Tech Used ----------------- None Achievements -------------- None Challenges ------------ None Game ------ Seed MetafieldMissilePlating Manual? 0 Play Time 00:28:55 Cumulative 101.8 hours Start 2019.10.25 @ 19:45:55 End 2019.10.25 @ 20:13:32 Sessions 1 Manual Loads 0 Difficulty Rogue Special Mode None Game No. 37 Rogue 37 Adventurer 0 Explorer 0 Win Type - Total 8 Types 2/0/2/4/0/0/0 Lore% 63 Gallery% 58 Achievement% 51 Wizard Run 0 Options --------- ASCII 0 Keyboard 0 Movement Mouse Keybinds 0 Fullscreen 1 Font 18/SmallcapsGlow Map View 76x50 Tactical HUD 1 Map Filters NONE Filters NONE Steam 0 RUN: e6ac4059-7f94-4414-bbdd-37ea3b6e1510